bitfinex/quotes_BTCUSD_20241215
["timestamp","ask_amount","ask_price","bid_price","bid_amount"]
[1734282733168,0.12853628,103100.0,103090.0,0.44641234]
[1734282734238,0.12853628,103100.0,103090.0,0.3578028]
[1734282736049,0.12853628,103100.0,103090.0,0.344005]
[1734282736566,0.12853628,103100.0,103090.0,0.3441772]
[1734282738430,0.42157631,103100.0,103090.0,0.1501722]
[1734282741022,0.50838702,103100.0,103090.0,0.1501722]
[1734282741705,0.42157631,103100.0,103090.0,0.0001722]
[1734282742960,0.22759031,103100.0,103090.0,0.3441772]
[1734282743381,0.42157631,103100.0,103090.0,0.1501722]
[1734282746786,0.55838702,103100.0,103090.0,0.0001722]
[1734282746997,0.8622245,103100.0,103090.0,0.0001722]
[1734282747198,1.09288868,103100.0,103090.0,0.0001722]
[1734282747412,0.57404049,103100.0,103070.0,0.194042]
[1734282747635,0.128,103080.0,103070.0,0.194042]
[1734282748088,0.128,103080.0,103070.0,0.25223812]
[1734282749561,0.128,103080.0,103070.0,0.40223812]
[1734282755718,0.0769,103090.0,103080.0,0.538024]
[1734282755930,0.0769,103090.0,103080.0,0.65441624]
[1734282756599,0.12603628,103100.0,103090.0,0.344005]
[1734282756853,0.12603628,103100.0,103090.0,0.40220112]
[1734282758375,0.00033628,103100.0,103090.0,0.40220112]
[1734282758795,0.00033628,103100.0,103090.0,0.344005]
[1734282759013,0.00033628,103100.0,103090.0,0.40220112]
[1734282761952,0.00033628,103100.0,103090.0,0.46039724]
[1734282762596,0.00033628,103100.0,103090.0,0.40220112]
[1734282763588,0.00033628,103100.0,103090.0,0.41603095]
[1734282765489,0.00033628,103100.0,103090.0,0.344005]
[1734282765697,0.12603628,103100.0,103090.0,0.40220112]
[1734282766369,0.12603628,103100.0,103090.0,0.194005]
[1734282766576,0.22509031,103100.0,103090.0,0.194005]
[1734282767986,0.22509031,103100.0,103090.0,0.344005]
[1734282769199,0.41907631,103100.0,103090.0,0.15]
[1734282770655,0.22509031,103100.0,103090.0,0.344005]
[1734282771476,0.12603628,103100.0,103090.0,0.344005]
[1734282774357,0.22509031,103100.0,103090.0,0.344005]
[1734282774918,0.41907631,103100.0,103090.0,0.344005]
[1734282776706,0.50596824,103100.0,103090.0,0.344005]
[1734282777889,0.50596824,103100.0,103090.0,0.15]
[1734282778319,0.63630614,103100.0,103090.0,0.15]
[1734282779560,0.81009,103100.0,103090.0,0.15]
[1734282779853,0.63630614,103100.0,103090.0,0.15]
[1734282781107,0.0789,103080.0,103070.0,0.40340402]
[1734282781292,0.1286,103080.0,103070.0,0.55340402]
[1734282784080,0.22765403,103080.0,103070.0,0.35937402]
[1734282784934,0.22765403,103080.0,103070.0,0.3442004]
[1734282787247,0.1286,103080.0,103070.0,0.43285982]
[1734282787499,0.16579193,103090.0,103080.0,0.344024]
[1734282787918,0.0789,103090.0,103080.0,0.344024]
[1734282790090,0.0789,103090.0,103080.0,0.40221031]
[1734282791926,0.21582821,103100.0,103090.0,0.15]
[1734282792134,0.21582821,103100.0,103090.0,0.40219131]
[1734282792369,0.12893628,103100.0,103090.0,0.40219131]
[1734282793010,0.07923628,103100.0,103090.0,0.40219131]
[1734282794519,0.00033628,103100.0,103090.0,0.40219131]
[1734282801624,0.00033628,103100.0,103090.0,0.12598142]
[1734282801837,0.00033628,103100.0,103090.0,0.05818631]
[1734282802051,0.00033628,103100.0,103090.0,0.25219131]
[1734282805047,0.00033628,103100.0,103090.0,0.40219131]
[1734282807985,0.00033628,103100.0,103090.0,0.30431925]
[1734282808273,0.00033628,103100.0,103090.0,0.40219131]
[1734282816719,0.00033628,103100.0,103090.0,0.344005]
[1734282816925,0.00033628,103100.0,103090.0,0.40219131]
[1734282817140,0.00033628,103100.0,103090.0,0.40236351]
[1734282818396,0.00033628,103100.0,103090.0,0.3441772]
[1734282818605,0.07813628,103100.0,103090.0,0.3441772]
[1734282818816,0.07813628,103100.0,103090.0,0.40236351]
[1734282818999,0.07813628,103100.0,103090.0,0.42236351]
[1734282820506,0.07813628,103100.0,103090.0,0.3641772]
[1734282821123,0.22359031,103100.0,103090.0,0.3641772]
[1734282821552,0.22359031,103100.0,103090.0,0.2141772]
[1734282821705,0.22359031,103100.0,103090.0,0.3641772]
[1734282823947,0.41757631,103100.0,103090.0,0.3641772]
[1734282825188,0.41757631,103100.0,103090.0,0.1701722]
[1734282827627,0.50456315,103100.0,103090.0,0.1701722]
[1734282827828,0.31057715,103100.0,103090.0,0.3641772]
[1734282828008,0.31057715,103100.0,103090.0,0.42236351]
[1734282828211,0.22359031,103100.0,103090.0,0.42236351]
[1734282828926,0.12453628,103100.0,103090.0,0.42236351]
[1734282829129,0.07813628,103100.0,103090.0,0.42236351]
[1734282832228,0.00033628,103100.0,103090.0,0.42236351]
[1734282833842,0.00033628,103100.0,103090.0,0.3641772]
[1734282834048,0.00033628,103100.0,103090.0,0.42236351]
[1734282835123,0.00033628,103100.0,103090.0,0.43458957]
[1734282840546,0.00033628,103100.0,103090.0,0.3641772]
[1734282840803,0.12463628,103100.0,103090.0,0.3641772]
[1734282841007,0.12463628,103100.0,103090.0,0.42236351]
[1734282841218,0.21176313,103100.0,103090.0,0.42236351]
[1734282841421,0.21176313,103100.0,103090.0,0.3641772]
[1734282845778,0.21176313,103100.0,103090.0,0.42236351]
[1734282845969,0.16306313,103100.0,103090.0,0.42236351]
[1734282846856,0.16306313,103100.0,103090.0,0.3641772]
[1734282848914,0.07593628,103100.0,103080.0,0.45844249]
[1734282849306,0.07593628,103100.0,103090.0,0.194005]
[1734282852008,0.07593628,103100.0,103090.0,0.1941774]
[1734282852495,0.07593628,103100.0,103090.0,0.3441774]
[1734282854815,0.36897631,103100.0,103090.0,0.3441774]
[1734282855020,0.36897631,103100.0,103090.0,0.1501724]
[1734282855648,0.45610316,103100.0,103090.0,0.1501724]
[1734282855852,0.36897631,103100.0,103090.0,0.1501724]
[1734282858715,0.39197631,103100.0,103090.0,0.1501724]
[1734282858951,0.60981221,103100.0,103090.0,0.1501724]
[1734282859180,0.78408093,103100.0,103090.0,0.1501724]
[1734282863555,0.78408093,103100.0,103090.0,0.0001724]
[1734282863763,0.78408093,103100.0,103090.0,0.1501724]
[1734282863967,1.00191683,103100.0,103090.0,0.1501724]
[1734282864998,0.39197631,103100.0,103090.0,0.1501724]
[1734282865203,1.00221826,103100.0,103090.0,0.1501724]
[1734282867851,0.96504084,103100.0,103090.0,0.0001724]
[1734282868266,0.83427471,103100.0,103090.0,0.0001724]
[1734282868998,0.96503505,103100.0,103090.0,0.0001724]
[1734282871236,1.01503505,103100.0,103090.0,0.0001724]
[1734282871482,1.06233505,103100.0,103090.0,0.0001724]
[1734282875391,1.06216243,103100.0,103090.0,0.0001724]
[1734282880016,0.81811797,103100.0,103090.0,0.1941774]
[1734282880214,0.79511797,103100.0,103090.0,0.1941774]
[1734282880551,0.79511797,103100.0,103090.0,0.0001724]
[1734282880998,0.79511797,103100.0,103090.0,0.1941774]
[1734282881688,0.67221797,103100.0,103090.0,0.1941774]
[1734282884062,0.62221797,103100.0,103090.0,0.1941774]
[1734282884267,0.67221797,103100.0,103090.0,0.1941774]
[1734282884469,0.67234725,103100.0,103090.0,0.1941774]
[1734282884669,0.69534725,103100.0,103090.0,0.1941774]
[1734282886402,0.64534725,103100.0,103090.0,0.1941774]
[1734282887022,0.69534725,103100.0,103090.0,0.1941774]
[1734282889227,0.56470711,103100.0,103090.0,0.1941774]
[1734282890144,0.69548043,103100.0,103090.0,0.1941774]
[1734282890352,0.56470711,103100.0,103090.0,0.1941774]
[1734282894383,0.51470711,103100.0,103090.0,0.1941774]
[1734282894592,0.56470711,103100.0,103090.0,0.1941774]
[1734282895378,0.51470711,103100.0,103090.0,0.1941774]
[1734282895792,0.56470711,103100.0,103090.0,0.1941774]
[1734282897086,0.51470711,103100.0,103090.0,0.1941774]
[1734282898629,0.51481794,103100.0,103090.0,0.1941774]
[1734282898841,0.56481794,103100.0,103090.0,0.1941774]
[1734282900309,0.51481794,103100.0,103090.0,0.1941774]
[1734282900918,0.56481794,103100.0,103090.0,0.1941774]
[1734282901869,0.51488556,103100.0,103090.0,0.1941774]
[1734282902710,0.64572186,103100.0,103090.0,0.1941774]
[1734282903065,0.52366783,103100.0,103090.0,0.40236371]
[1734282903264,0.39283429,103100.0,103090.0,0.40236371]
[1734282903537,0.21839196,103100.0,103090.0,0.40236371]
[1734282906208,0.08755566,103100.0,103090.0,0.40236371]
[1734282908604,0.08755566,103100.0,103090.0,0.41397554]
[1734282909275,0.08755566,103100.0,103090.0,0.35578923]
[1734282909697,0.08755566,103100.0,103090.0,0.3441774]
[1734282909911,0.33730969,103100.0,103090.0,0.3441774]
[1734282910134,0.53129569,103100.0,103090.0,0.1501724]
[1734282910343,0.53129569,103100.0,103090.0,0.0001724]
[1734282910344,1.01740786,103100.0,103090.0,0.0001724]
[1734282910551,0.88657156,103100.0,103090.0,0.0001724]
[1734282910961,0.88639525,103100.0,103090.0,0.0001724]
[1734282912400,0.93639525,103100.0,103090.0,0.0001724]
[1734282917638,0.94817819,103100.0,103090.0,0.0001724]
[1734282918105,0.77381422,103100.0,103090.0,0.0001724]
[1734282918435,1.03536018,103100.0,103090.0,0.0001724]
[1734282918552,1.09354649,103100.0,103090.0,0.0001724]
[1734282918755,0.78200053,103100.0,103090.0,0.0001724]
[1734282918970,0.82432289,103100.0,103090.0,0.0001724]
[1734282919172,0.77559152,103100.0,103090.0,0.0001724]
[1734282920065,0.96443535,103100.0,103090.0,0.0001724]
[1734282920188,1.25857419,103100.0,103090.0,0.0001724]
[1734282921220,1.0695195,103100.0,103090.0,0.0001724]
[1734282922389,0.79436925,103100.0,103090.0,0.0001724]
[1734282923233,0.023,103080.0,103060.0,0.45775587]
[1734282923437,0.09905403,103070.0,103060.0,0.45775587]
[1734282923661,0.12205403,103070.0,103060.0,0.45775587]
[1734282923865,0.12205403,103070.0,103060.0,0.39956956]
[1734282924152,0.12205403,103070.0,103060.0,0.44628731]
[1734282924565,0.09905403,103070.0,103060.0,0.44628731]
[1734282924984,0.09905403,103070.0,103060.0,0.388101]
[1734282926892,0.09905403,103070.0,103060.0,0.538101]
[1734282930019,0.09905403,103070.0,103060.0,0.59628731]
[1734282931329,0.09905403,103070.0,103060.0,0.59645971]
[1734282933858,0.09905403,103070.0,103060.0,0.5382734]
[1734282934283,0.17405403,103070.0,103060.0,0.5382734]
[1734282935100,0.09905403,103070.0,103060.0,0.5382734]
[1734282936765,0.09905403,103070.0,103060.0,0.59645971]
[1734282938718,0.09905403,103070.0,103060.0,0.5382734]
[1734282940342,0.09905403,103070.0,103060.0,0.3442244]
[1734282940586,0.09905403,103070.0,103060.0,0.5382694]
[1734282940936,0.09905403,103070.0,103060.0,0.59645571]
[1734282941338,0.09905403,103070.0,103060.0,0.67295571]
[1734282941987,0.09905403,103070.0,103060.0,0.6147694]
[1734282942165,0.09905403,103070.0,103060.0,0.67295571]
[1734282942361,0.84517083,103090.0,103070.0,0.388081]
[1734282942667,0.12205403,103080.0,103070.0,0.194039]
[1734282944022,0.31607803,103080.0,103060.0,0.86700171]
[1734282944448,0.31607803,103080.0,103060.0,0.67295071]
[1734282945018,0.31607803,103080.0,103060.0,0.8088144]
[1734282945778,0.39527803,103080.0,103060.0,0.8088144]
[1734282946978,0.39527803,103080.0,103060.0,0.4207174]
[1734282947184,0.58931103,103080.0,103060.0,0.5382784]
[1734282949663,0.39527803,103080.0,103060.0,0.79051671]
[1734282950316,0.39527803,103080.0,103070.0,0.15]
[1734282950526,0.48231185,103080.0,103070.0,0.15]
[1734282953229,0.61286258,103080.0,103070.0,0.15]
[1734282954051,0.61294878,103080.0,103070.0,0.15]
[1734282955306,0.78701643,103080.0,103070.0,0.15]
[1734282958365,1.35564217,103080.0,103060.0,0.1942174]
[1734282958581,0.08716657,103070.0,103060.0,0.3442174]
[1734282958784,0.31677133,103070.0,103060.0,0.3442174]
[1734282959194,0.39227133,103070.0,103060.0,0.3442174]
[1734282960687,0.58631333,103070.0,103060.0,0.1501724]
[1734282960903,0.60931333,103070.0,103060.0,0.1501724]
[1734282961117,1.00193947,103070.0,103060.0,0.1501724]
[1734282961336,0.91474755,103070.0,103060.0,0.1501724]
[1734282964702,1.00196566,103070.0,103060.0,0.1501724]
[1734282964879,0.91474755,103070.0,103060.0,0.1501724]
[1734282965083,1.00196576,103070.0,103060.0,0.1501724]
[1734282965283,1.00205489,103070.0,103060.0,0.1501724]
[1734282965739,0.9149856,103070.0,103060.0,0.1501724]
[1734282965877,1.00220278,103070.0,103060.0,0.0001724]
[1734282966076,0.9149856,103070.0,103060.0,0.0001724]
[1734282966904,0.81581161,103070.0,103060.0,0.0001724]
[1734282967127,0.53958223,103070.0,103060.0,0.0001724]
[1734282967320,0.81278733,103070.0,103060.0,0.0001724]
[1734282967521,0.76912446,103070.0,103060.0,0.0001724]
[1734282969216,0.96267766,103070.0,103060.0,0.05835871]
[1734282969478,0.51441521,103070.0,103060.0,0.19624848]
[1734282969661,0.53410957,103070.0,103060.0,0.0001724]
[1734282970106,0.34004656,103070.0,103060.0,0.1942334]
[1734282971346,0.31704656,103070.0,103060.0,0.25241971]
[1734282972391,0.18630276,103070.0,103060.0,0.40241971]
[1734282973424,0.18630276,103070.0,103060.0,0.3442334]
[1734282974660,0.18630106,103070.0,103060.0,0.3442334]
[1734282976300,0.18630106,103070.0,103060.0,0.1942334]
[1734282976558,0.18630106,103070.0,103060.0,0.3442334]
[1734282980140,0.18630106,103070.0,103060.0,0.40241971]
[1734282980313,0.3170423,103070.0,103060.0,0.40241971]
[1734282980552,0.5110843,103070.0,103060.0,0.3442334]
[1734282980951,0.5340843,103070.0,103060.0,0.1501724]
[1734282981162,0.6092843,103070.0,103060.0,0.1501724]
[1734282982138,0.78360596,103070.0,103060.0,0.1501724]
[1734282983626,0.39138223,103070.0,103060.0,0.1501724]
[1734282983834,0.78363541,103070.0,103060.0,0.1501724]
[1734282985448,0.39138223,103070.0,103060.0,0.1501724]
[1734282985610,0.39138223,103070.0,103060.0,0.0001724]
[1734282986247,0.52213267,103070.0,103060.0,0.0001724]
[1734282986651,0.69646659,103070.0,103060.0,0.0001724]
[1734282987092,0.78363355,103070.0,103060.0,0.0001724]
[1734282987843,0.65288311,103070.0,103060.0,0.0001724]
[1734282988288,0.47854919,103070.0,103060.0,0.0001724]
[1734282988894,0.39138223,103070.0,103060.0,0.0001724]
[1734282992049,0.91444291,103070.0,103060.0,0.0001724]
[1734282993108,1.00161915,103070.0,103060.0,0.0001724]
[1734282993336,0.60932364,103070.0,103060.0,0.0001724]
[1734282993578,0.60931456,103070.0,103060.0,0.0001724]
[1734282994138,0.78366043,103070.0,103060.0,0.0001724]
[1734282999609,1.00159277,103070.0,103060.0,0.0001724]
[1734283000338,0.91441984,103070.0,103060.0,0.0001724]
[1734283001365,1.00162338,103070.0,103060.0,0.0001724]
[1734283001568,0.91441984,103070.0,103060.0,0.0001724]
[1734283004288,0.91448485,103070.0,103060.0,0.0001724]
[1734283012541,0.91466548,103070.0,103060.0,0.0001724]
[1734283013937,0.78384467,103070.0,103060.0,0.0001724]
[1734283014089,0.91468714,103070.0,103060.0,0.0001724]
[1734283014971,0.78384467,103070.0,103060.0,0.0001724]
[1734283015597,0.91470626,103070.0,103060.0,0.0001724]
[1734283019401,0.72066426,103070.0,103060.0,0.1942334]
[1734283019601,0.64546426,103070.0,103060.0,0.22788601]
[1734283019780,0.64546426,103070.0,103060.0,0.1942334]
[1734283021119,0.64546426,103070.0,103060.0,0.25241971]
[1734283021314,0.62246426,103070.0,103060.0,0.25241971]
[1734283022020,0.62246426,103070.0,103060.0,0.1942334]
[1734283023883,0.62246426,103070.0,103060.0,0.0001724]
[1734283026384,0.81650626,103070.0,103060.0,0.0001724]
[1734283027598,0.51130994,103070.0,103050.0,0.71529433]
[1734283031968,0.51130994,103070.0,103050.0,0.52122433]
[1734283032176,0.68573769,103070.0,103050.0,0.71529433]
[1734283032552,0.51130994,103070.0,103050.0,0.71529433]
[1734283034081,0.59210994,103070.0,103050.0,0.71529433]
[1734283034665,0.37398223,103070.0,103050.0,0.71546673]
[1734283034870,0.59213955,103070.0,103050.0,0.71546673]
[1734283035039,0.78618255,103070.0,103050.0,0.46321042]
[1734283035240,0.38037796,103060.0,103050.0,0.1501724]
[1734283036457,0.38043255,103060.0,103050.0,0.1501724]
[1734283036894,0.38043255,103060.0,103050.0,0.3442524]
[1734283037224,0.18637155,103060.0,103050.0,0.40243871]
[1734283037511,0.31726594,103060.0,103050.0,0.40243871]
[1734283040723,0.21821191,103060.0,103050.0,0.40243871]
[1734283040849,0.08731752,103060.0,103050.0,0.36289132]
[1734283041677,5.459e-05,103060.0,103050.0,0.36289132]
[1734283048279,5.459e-05,103060.0,103050.0,0.32923871]
[1734283049510,5.459e-05,103060.0,103050.0,0.2710524]
[1734283049712,5.459e-05,103060.0,103050.0,0.32923871]
[1734283051106,5.459e-05,103060.0,103050.0,0.25243871]
[1734283051307,0.08730238,103060.0,103050.0,0.25243871]
[1734283051469,5.459e-05,103060.0,103050.0,0.25243871]
[1734283051914,5.459e-05,103060.0,103040.0,0.69081722]
[1734283052114,5.459e-05,103060.0,103050.0,0.25226631]
[1734283052895,0.08730238,103060.0,103050.0,0.25226631]
[1734283053590,5.459e-05,103060.0,103050.0,0.25226631]
[1734283054412,0.08730717,103060.0,103050.0,0.25226631]
[1734283056918,5.459e-05,103060.0,103050.0,0.25226631]
[1734283057310,5.459e-05,103060.0,103050.0,0.25243871]
[1734283057517,0.00014079,103060.0,103050.0,0.05835871]
[1734283057640,0.00014079,103060.0,103050.0,0.25226631]
[1734283059042,0.00014079,103060.0,103050.0,0.19408]
[1734283059297,0.00014079,103060.0,103050.0,0.25226631]
[1734283061139,0.08739337,103060.0,103050.0,0.25226631]
[1734283061895,0.1864474,103060.0,103050.0,0.25226631]
[1734283062175,0.2655474,103060.0,103040.0,0.65116884]
[1734283062431,0.5088104,103060.0,103040.0,0.45707984]
[1734283062665,0.7028734,103060.0,103040.0,0.44635531]
[1734283063179,0.70287422,103060.0,103040.0,0.44635531]
[1734283063777,0.70287422,103060.0,103040.0,0.194084]
[1734283064010,0.42143503,103050.0,103030.0,0.20482943]
[1734283064217,0.70277943,103050.0,103030.0,0.25229231]
[1734283064488,0.89687143,103050.0,103030.0,0.25229231]
[1734283064697,0.70277943,103050.0,103030.0,0.25229231]
[1734283067490,0.70271476,103050.0,103030.0,0.25229231]
[1734283067696,0.83349786,103050.0,103030.0,0.25229231]
[1734283068144,0.84437281,103050.0,103030.0,0.194106]
[1734283068396,0.84437281,103050.0,103030.0,0.25229231]
[1734283069872,0.84437281,103050.0,103030.0,0.25237851]
[1734283070293,0.65028181,103050.0,103030.0,0.44648551]
[1734283070492,0.51949871,103050.0,103030.0,0.44648551]
[1734283070875,0.51949871,103050.0,103030.0,0.25237851]
[1734283071646,0.51949871,103050.0,103030.0,0.44649651]
[1734283071865,0.71358771,103050.0,103030.0,0.44649651]
[1734283072066,0.1283,103040.0,103030.0,8.62e-05]
[1734283072311,0.31454276,103040.0,103030.0,0.1942042]
[1734283072535,0.09905403,103040.0,103030.0,0.28604312]
[1734283073704,0.09905403,103040.0,103030.0,0.25239051]
[1734283082415,0.09905403,103040.0,103030.0,0.40239051]
[1734283084476,0.09905403,103040.0,103030.0,0.18554867]
[1734283084697,0.1284724,103050.0,103030.0,0.58742693]
[1734283084901,0.22752643,103050.0,103040.0,0.194099]
[1734283086419,0.27752643,103050.0,103040.0,0.194099]
[1734283086633,0.22752643,103050.0,103040.0,0.194099]
[1734283087476,0.0001724,103050.0,103040.0,0.57122423]
[1734283092900,0.0001724,103050.0,103040.0,0.421199]
[1734283093116,0.0001724,103050.0,103040.0,0.53757162]
[1734283095275,0.0001724,103050.0,103040.0,0.421199]
[1734283095690,0.0001724,103050.0,103040.0,0.53757162]
[1734283096933,0.0001724,103050.0,103040.0,0.46047162]
[1734283097351,0.0001724,103050.0,103040.0,0.344099]
[1734283097566,0.1294724,103050.0,103040.0,0.40228531]
[1734283098900,0.1294724,103050.0,103040.0,0.46047162]
[1734283099105,0.0001724,103050.0,103040.0,0.46047162]
[1734283099317,0.0001724,103050.0,103040.0,0.56489432]
[1734283099531,0.0001724,103050.0,103040.0,0.53577162]
[1734283104296,0.0001724,103050.0,103040.0,0.419399]
[1734283104495,0.0001724,103050.0,103040.0,0.53577162]
[1734283104930,0.0001724,103050.0,103040.0,0.46047162]
[1734283106767,0.0001724,103050.0,103040.0,0.40228531]
[1734283106980,0.0777724,103050.0,103040.0,0.40228531]
[1734283108258,0.17682643,103050.0,103040.0,0.344099]
[1734283108469,0.22382643,103050.0,103040.0,0.344099]
[1734283109636,0.41790643,103050.0,103040.0,0.344099]
[1734283111228,0.41790643,103050.0,103040.0,0.15]
[1734283111908,0.318699,103040.0,103030.0,0.1500862]
[1734283112118,0.41775303,103040.0,103030.0,0.1500862]
[1734283113181,0.41775303,103040.0,103030.0,0.20827251]
[1734283113862,0.41775303,103040.0,103030.0,0.1500862]
[1734283114134,0.41775303,103040.0,103030.0,8.62e-05]
[1734283129271,0.194118,103030.0,103020.0,0.40235307]
[1734283129488,0.29317203,103030.0,103020.0,0.40235307]
[1734283129704,0.37387203,103030.0,103020.0,0.40235307]
[1734283129916,0.37387203,103030.0,103020.0,0.34416676]
[1734283130336,0.37387203,103030.0,103020.0,0.15004376]
[1734283130542,0.37387203,103030.0,103020.0,0.20823007]
[1734283134551,0.37387203,103030.0,103020.0,0.15004376]
[1734283137426,0.42127203,103030.0,103020.0,0.15004376]
[1734283141022,0.22715403,103030.0,103020.0,0.20823007]
[1734283141244,0.09905403,103030.0,103020.0,0.40236707]
[1734283144591,0.09905403,103030.0,103020.0,0.34418076]
[1734283145950,0.09905403,103030.0,103010.0,0.53732038]
[1734283146177,0.09905403,103020.0,103010.0,0.28499007]
[1734283146426,0.09905403,103020.0,103010.0,0.20799007]
[1734283147391,0.09905403,103020.0,103010.0,0.20853661]
[1734283148178,0.17405403,103020.0,103010.0,0.19486194]
[1734283150362,0.17405403,103020.0,103010.0,0.25304825]
[1734283152566,0.17405403,103020.0,103010.0,0.40304825]
[1734283152771,0.36819103,103020.0,103010.0,0.20890525]
[1734283153561,0.36819103,103020.0,103010.0,0.15071894]
[1734283154462,0.17405403,103020.0,103010.0,0.34487394]
[1734283154861,0.17405403,103020.0,103010.0,0.40306025]
[1734283158705,0.09905403,103020.0,103010.0,0.40306025]
[1734283162163,0.09922643,103020.0,103010.0,0.40306025]
[1734283162920,0.0001724,103020.0,103010.0,0.43218295]
[1734283163134,0.0001724,103020.0,103010.0,0.51068295]
[1734283163367,0.0001724,103020.0,103010.0,0.48156025]
[1734283166370,0.0001724,103020.0,103010.0,0.33156025]
[1734283168309,0.0001724,103020.0,103010.0,0.41877257]
[1734283171427,0.0001724,103020.0,103010.0,0.4187882]
[1734283171838,0.0001724,103020.0,103010.0,0.3402882]
[1734283173040,0.0001724,103020.0,103010.0,0.28210189]
[1734283173254,0.0001724,103020.0,103010.0,0.3402882]
[1734283173438,0.0817724,103020.0,103010.0,0.25306025]
[1734283174226,0.0817724,103020.0,103010.0,0.34029068]
[1734283174393,0.0817724,103020.0,103010.0,0.25306025]
[1734283175208,0.0001724,103020.0,103010.0,0.34029068]
[1734283175403,0.0001724,103020.0,103010.0,0.25306025]
[1734283179500,0.0816724,103020.0,103010.0,0.25306025]
[1734283179898,0.23002643,103020.0,103010.0,0.19487394]
[1734283180732,0.0001724,103020.0,103010.0,0.5399173]
[1734283180931,0.0001724,103020.0,103010.0,0.56806926]
[1734283181171,0.0001724,103020.0,103010.0,0.78614534]
[1734283182159,0.0001724,103020.0,103010.0,0.65529969]
[1734283182981,0.0001724,103020.0,103010.0,0.59711338]
[1734283183190,0.0001724,103020.0,103010.0,0.50988295]
[1734283185364,0.0001724,103020.0,103010.0,0.40306025]
[1734283188886,0.0001724,103020.0,103010.0,0.34487394]
[1734283189094,0.0001724,103020.0,103010.0,0.40306025]
[1734283191924,0.0001724,103020.0,103010.0,0.20195022]
[1734283192278,0.0001724,103020.0,103010.0,0.39610522]
[1734283195780,0.0001724,103020.0,103010.0,0.39619142]
[1734283200775,0.0001724,103020.0,103010.0,0.48342907]
[1734283200981,0.0001724,103020.0,103010.0,0.48344999]
[1734283201997,0.0001724,103020.0,103010.0,0.61433785]
[1734283202403,0.0001724,103020.0,103010.0,0.48344999]
[1734283204345,0.0001724,103020.0,103010.0,0.39619142]
[1734283208497,0.2177937,103020.0,103010.0,0.39619142]
[1734283209136,0.08722092,103020.0,103010.0,0.24422357]
[1734283209342,0.16882092,103020.0,103010.0,0.24422357]
[1734283209550,0.44657951,103020.0,103010.0,0.18603726]
[1734283210177,0.44657951,103020.0,103000.0,0.36620185]
[1734283210380,0.44657951,103020.0,103010.0,0.05818631]
[1734283210584,0.44657951,103020.0,103010.0,0.25234131]
[1734283211230,0.64071651,103020.0,103010.0,0.20818631]
[1734283211412,0.64071651,103020.0,103010.0,0.15]
[1734283211630,0.36497951,103020.0,103000.0,0.52891442]
[1734283211861,0.36497951,103020.0,103010.0,0.25234131]
[1734283212068,0.23444766,103020.0,103010.0,0.25234131]
[1734283212511,0.31604766,103020.0,103010.0,0.25234131]
[1734283213543,0.44657951,103020.0,103010.0,0.25234131]
[1734283216756,0.31604766,103020.0,103010.0,0.25234131]
[1734283217381,0.31604766,103020.0,103010.0,0.40234131]
[1734283220272,0.44657951,103020.0,103010.0,0.40234131]
[1734283221676,0.62062198,103020.0,103010.0,0.40234131]
[1734283226058,0.62062198,103020.0,103010.0,0.344155]
[1734283226272,0.62062198,103020.0,103010.0,0.40234131]
[1734283228399,0.83817507,103020.0,103010.0,0.40234131]
[1734283229539,1.03231207,103020.0,103000.0,0.45890495]
[1734283229748,0.63692694,103010.0,103000.0,0.00019231]
[1734283229953,1.0785225,103010.0,103000.0,0.00019231]
[1734283230168,0.86100459,103010.0,103000.0,0.00019231]
[1734283230370,0.68696212,103010.0,103000.0,0.00019231]
[1734283230576,0.74491356,103010.0,103000.0,0.00019231]
[1734283230772,0.68672725,103010.0,103000.0,0.00019231]
[1734283230981,0.73047274,103010.0,103000.0,0.00019231]
[1734283231637,0.73018032,103010.0,103000.0,0.00019231]
[1734283231769,0.68662535,103010.0,103000.0,0.00019231]
[1734283231974,0.68662535,103010.0,102980.0,0.26471403]
[1734283231975,0.1262,103000.0,102980.0,0.26471403]
[1734283232347,0.63664334,103000.0,102980.0,0.45892603]
[1734283232734,0.50631715,103000.0,102980.0,0.45892603]
[1734283233399,0.70049615,103000.0,102980.0,0.45892603]
[1734283236489,0.70034667,103000.0,102980.0,0.45892603]
[1734283237135,0.71284658,103000.0,102980.0,0.45892603]
[1734283237475,0.62611194,103000.0,102980.0,0.45892603]
[1734283239361,0.62611194,103000.0,102980.0,0.40073972]
[1734283239716,0.62611194,103000.0,102980.0,0.45892603]
[1734283240678,0.43193294,103000.0,102980.0,0.45892603]
[1734283241587,0.62610794,103000.0,102980.0,0.45892603]
[1734283242228,0.62610794,103000.0,102980.0,0.45901223]
[1734283246639,0.82029394,103000.0,102980.0,0.26480023]
[1734283246869,0.62610794,103000.0,102980.0,0.26480023]
[1734283249378,0.82029794,103000.0,102980.0,0.26480023]
[1734283249791,0.37234703,102990.0,102980.0,8.62e-05]
[1734283250405,0.42184703,102990.0,102980.0,8.62e-05]
[1734283251471,0.47184703,102990.0,102980.0,8.62e-05]
[1734283254006,0.47384703,102990.0,102980.0,8.62e-05]
[1734283254242,0.53203334,102990.0,102980.0,8.62e-05]
[1734283254455,0.69053056,102990.0,102980.0,8.62e-05]
[1734283255976,0.68853056,102990.0,102980.0,8.62e-05]
[1734283261089,0.69671687,102990.0,102980.0,8.62e-05]
[1734283261330,0.87006369,102990.0,102980.0,8.62e-05]
[1734283262639,1.08674722,102990.0,102980.0,8.62e-05]
[1734283263008,1.00007381,102990.0,102980.0,8.62e-05]
[1734283263205,0.9418875,102990.0,102980.0,8.62e-05]
[1734283263808,1.02846421,102990.0,102980.0,8.62e-05]
[1734283264403,0.9418875,102990.0,102980.0,8.62e-05]
[1734283264596,1.02845691,102990.0,102980.0,8.62e-05]
[1734283264796,0.9418875,102990.0,102980.0,8.62e-05]
[1734283265023,1.02846608,102990.0,102980.0,8.62e-05]
[1734283265225,0.9418875,102990.0,102980.0,8.62e-05]
[1734283265453,1.02846511,102990.0,102980.0,8.62e-05]
[1734283267685,0.9418875,102990.0,102980.0,8.62e-05]
[1734283273533,0.94179226,102990.0,102980.0,8.62e-05]
[1734283273741,0.9418237,102990.0,102980.0,8.62e-05]
[1734283273943,0.81187738,102990.0,102980.0,8.62e-05]
[1734283276301,0.37003,102980.0,102960.0,0.05818631]
[1734283276501,0.09905403,102970.0,102960.0,0.05818631]
[1734283277724,0.09905403,102970.0,102960.0,0.05829245]
[1734283284533,0.11436055,102970.0,102960.0,0.05829245]
[1734283287519,0.11436055,102970.0,102960.0,0.05818631]
[1734283290780,0.11453295,102970.0,102960.0,0.05818631]
[1734283290987,0.11453295,102970.0,102950.0,0.64517698]
[1734283291198,0.11453295,102970.0,102960.0,0.05818631]
[1734283292260,0.01547892,102970.0,102960.0,0.31062262]
[1734283292444,0.0001724,102970.0,102960.0,0.31062262]
[1734283292677,0.0001724,102970.0,102960.0,0.25243631]
[1734283293670,0.0001724,102970.0,102960.0,0.19425]
[1734283293876,0.0001724,102970.0,102960.0,0.25243631]
[1734283294293,0.0001724,102970.0,102960.0,0.19425]
[1734283294500,0.0001724,102970.0,102960.0,0.25243631]
[1734283297425,0.08683314,102970.0,102960.0,0.25243631]
[1734283297600,0.0001724,102970.0,102960.0,0.46346376]